Cogmind - Beta 10.2 @@@ ROGUE MODE // 2021.05.11 @ 18:22:58 Player: DHM1 Result: Destroyed by D-53 Grenadier with Mini Grenade Launcher Performance ------------- Evolutions (1) 500 Regions Visited (4) 800 Robots Destroyed (58) 290 Value Destroyed (1774) 1774 Prototype IDs (4) 80 Alien Tech Used (0) 0 Bonus (95) 95 TOTAL SCORE: 3539 Bonus ------- High Alert Combat Kills 95 Cogmind --------- Core Integrity 0/400 Matter 219/300 Energy 265/265 System Corruption 0% Temperature Cool (0) Movement Core (250) Ox4 Location -9/Mines Parts ------- > --- POWER (1) -------- Reinforced Ion Engine > --- PROPULSION (3) --- (None) > --- UTILITY (3) ------ Improved Heat Sink Advanced Signal Interpreter > --- WEAPON (2) ------- Rocket Launcher > --- INVENTORY (4) ---- Mini Grenade Launcher Stasis Trap (100%) Peak State ------------ > --- POWER ------------ Cooled Ion Engine > --- PROPULSION ------- Improved Aluminum Leg Improved Aluminum Leg Improved Aluminum Leg > --- UTILITY ---------- Improved Heat Sink Advanced Signal Interpreter Hardened Light Armor Plating > --- WEAPON ----------- Improved EM Shotgun Rocket Launcher > --- INVENTORY -------- Reinforced Ion Engine EM Pulse Cannon EM Pulse Cannon Heavy Assault Rifle [Rating: 23] Favorites ----------- Power Reinforced Ion Engine Engine Reinforced Ion Engine Power Core Light Nuclear Core Propulsion Aluminum Leg Leg Aluminum Leg Flight Unit Improved Flight Unit Utility Sensor Array Device Sensor Array Storage Large Matter Pod Processor Advanced Signal Interpreter Protection Hardened Light Armor Plating Weapon Heavy Assault Rifle Energy Gun Improved EM Shotgun Energy Cannon EM Pulse Cannon Ballistic Gun Heavy Assault Rifle Launcher Rocket Launcher Build | -11 -10 -10 -9 -9 ------- Run | Scr Mat Min Mat Min Slots Evolved 2 | . . . 2 . Power . | . . . . . Propulsion 1 | . . . 1 . Utility 1 | . . . 1 . Weapon . | . . . . . Parts Attached 44 | 5 8 3 21 7 Power 6 | 1 1 1 2 1 Engine 5 | 1 1 . 2 1 Core 1 | . . 1 . . Reactor . | . . . . . Propulsion 15 | 2 3 . 9 1 Treads . | . . . . . Leg 14 | 2 3 . 8 1 Wheel . | . . . . . Hover . | . . . . . Flight 1 | . . . 1 . Utility 6 | . 2 . 4 . Device 2 | . 1 . 1 . Storage 1 | . 1 . . . Processor 2 | . . . 2 . Hackware . | . . . . . Protection 1 | . . . 1 . Artifact . | . . . . . Weapon 17 | 2 2 2 6 5 Energy Gun 5 | 1 . 1 3 . Energy Cannon 3 | . . . . 3 Ballistic Gun 5 | 1 1 . 2 1 Ballistic Cannon . | . . . . . Launcher 4 | . 1 1 1 1 Special Weapon . | . . . . . Impact Weapon . | . . . . . Slashing Weapon . | . . . . . Piercing Weapon . | . . . . . Special Melee Weapon . | . . . . . Unidentified Prototypes 3 | . . . 3 . Parts Lost 18 | . 1 1 6 10 Power 2 | . 1 . . 1 Propulsion 7 | . . . 3 4 Utility 2 | . . . 1 1 Weapon 7 | . . 1 2 4 Highest Loss Streak 6 | . 1 1 2 6 Average Slot Usage (%) 88 | . 82 99 93 75 Engine 8 | . 7 3 9 10 Core 2 | . . 10 1 . Leg 23 | . 28 28 28 11 Device 12 | . 10 14 12 11 Storage 5 | . 6 14 5 . Processor 7 | . . . 11 11 Protection 4 | . . . 2 10 Energy Gun 6 | . 3 6 11 . Energy Cannon 2 | . . . . 10 Ballistic Gun 9 | . 14 14 5 10 Launcher 4 | . 10 6 5 . Naked Turns . | . . . . . Heaviest Build 25 | 5 14 14 21 25 Greatest Support 39 | 20 20 20 39 39 Greatest Overweight (x) 8 | . . . 1 8 Average Overweight (x) . | . . . . 1 Largest Inventory Capacity 4 | 4 4 4 4 4 Average Capacity 4 | 4 4 4 4 4 Most Carried 4 | 1 4 4 4 4 Average Carried 3 | . 2 3 3 2 Final Capacity 4 | 4 4 4 4 4 Final Carried 4 | 1 4 4 4 2 Class Distribution -------------------- 56% | Scavenger-Mutant 43% | Mutant Dominant Class ---------------- Mutant | -10/Materials Scavenger-Mutant | -10/Mines Mutant | -9/Materials Scavenger-Mutant | -9/Mines Resources | -11 -10 -10 -9 -9 ----------- Run | Scr Mat Min Mat Min Matter Collected 1343 | 250 248 181 591 73 Remotely . | . . . . . Salvage Created 1777 | . 254 190 1011 322 Parts 105 | . 22 13 58 12 Haulers Intercepted . | . . . . . Recyclers Shooed 1 | . . . 1 . Parts Field Recycled . | . . . . . Retrieved Matter . | . . . . . Parts Self-Destructed . | . . . . . Prevented . | . . . . . Kills | -11 -10 -10 -9 -9 ------- Run | Scr Mat Min Mat Min Combat Hostiles Destroyed 51 | . 7 7 27 10 Guns 31 | . 3 7 15 6 AOE 20 | . 4 . 12 4 Classes Destroyed 13 | . 3 1 4 5 Worker 1 | . . . 1 . Builder 5 | . 4 . 1 . Tunneler 1 | . . . . 1 Recycler 1 | . . . . 1 Mechanic 1 | . . . 1 . Watcher 3 | . 1 . 2 . Swarmer 10 | . . 3 7 . Grunt 24 | . 7 4 11 2 Brawler 1 | . . . 1 . Duelist 2 | . . . . 2 Sentry 8 | . . . 8 . Demolisher 1 | . . . . 1 Assembled 5 | . . . . 5 Best Kill Streak 10 | . 10 3 4 4 Combat Bots Only 5 | . 5 3 3 4 Max Kills in Single Turn 4 | . 2 1 4 2 Gunslinging . | . . . . . Exploded 3 | . 1 . 3 1 Melee . | . . . . . Uniques/NPCs Destroyed . | . . . . . Combat | -11 -10 -10 -9 -9 -------- Run | Scr Mat Min Mat Min Damage Taken 2718 | . 327 213 885 1293 Core 511 | . 78 31 147 255 Absorbed by Shields . | . . . . . Core Remaining (%) 78 | 100 . 56 . . Volleys Fired 168 | . 26 17 89 36 Largest 2 | . 2 2 2 2 Hottest 88 | . 60 50 88 86 Shots Fired 253 | . 46 20 148 39 Gun 206 | . 41 17 121 27 Cannon 5 | . . . . 5 Launcher 42 | . 5 3 27 7 Special . | . . . . . Kinetic 118 | . 26 17 62 13 Thermal 52 | . 15 . 37 . Explosive 42 | . 5 3 27 7 Electromagnetic 41 | . . . 22 19 Robot Hit Streak 10 | . 5 10 7 10 Robot Miss Streak 9 | . 4 3 9 4 Penetration Max . | . . . . . Secondary Targets 2 | . 1 . 1 . Max Gunslinging Chain 1 | . 1 . 1 . Shots Hit Robots 139 | . 24 12 78 25 Core Hits 112 | . 21 13 56 22 Critical Hits 2 | . . . 2 . Critical Kills . | . . . . . Critical Parts Destroyed 2 | . . . 2 . Melee Attacks . | . . . . . Impact . | . . . . . Slashing . | . . . . . Piercing . | . . . . . Sneak Attacks . | . . . . . Combat Hostiles . | . . . . . Follow-up Attacks . | . . . . . Damage Inflicted 4051 | . 843 236 2296 676 Guns 1604 | . 213 179 871 341 Cannons 63 | . . . . 63 Explosions 2384 | . 630 57 1425 272 Melee . | . . . . . Ramming . | . . . . . Kinetic 854 | . 94 179 441 140 Thermal 1079 | . 119 . 871 89 Explosive 1659 | . 630 57 789 183 Electromagnetic 459 | . . . 195 264 Impact . | . . . . . Slashing . | . . . . . Piercing . | . . . . . Highest Corruption . | . . . . . Average Corruption . | . . . . . Corruption Purged . | . . . . . Overload Shots . | . . . . . Overflow Damage 198 | . . . 194 4 Projectiles . | . . . . . Explosions 198 | . . . 194 4 Melee . | . . . . . Knockbacks . | . . . . . Impact . | . . . . . Kinetic . | . . . . . Secondary . | . . . . . Self-Inflicted Damage 177 | . . . 62 115 Shots 4 | . . . 1 3 Rammed . | . . . . . Targets Rammed . | . . . . . Kicked . | . . . . . Crushed . | . . . . . Highest Temperature 222 | . 218 5 222 8 Average Temperature 72 | . 92 3 68 8 Received Heat Transfer 566 | . 192 63 267 44 Siege Activations . | . . . . . Robots Corrupted . | . . . . . Combat Hostiles . | . . . . . Parts Fried 3 | . . . . 3 Impact Corruptions . | . . . . . Robots Melted . | . . . . . Combat Hostiles . | . . . . . Parts Melted 4 | . . . 3 1 Heat Transferred 1367 | . 275 . 992 100 Parts Sabotaged . | . . . . . Parts Stolen . | . . . . . Parts Stripped . | . . . . . Power Chain Reactions 3 | . . . 2 1 Missiles Intercepted . | . . . . . Alert | -11 -10 -10 -9 -9 ------- Run | Scr Mat Min Mat Min Peak Influence 713 | . 254 196 713 327 Initial 277 | . . 21 . 277 Average 240 | . 165 91 399 142 Maximum Alert Level 3 | . 1 . 3 1 Low Security (%) 46 | 100 42 100 14 61 Level 1 33 | . 57 . 36 38 Level 2 19 | . . . 46 . Level 3 . | . . . 2 . Level 4 . | . . . . . Level 5 . | . . . . . High Security . | . . . . . Max Security . | . . . . . Squads Dispatched 5 | . 3 . 2 . Investigation 3 | . 2 . 1 . Extermination . | . . . . . Reinforcement 2 | . 1 . 1 . Assault . | . . . . . Garrison . | . . . . . Intercept . | . . . . . Construction Impeded . | . . . . . Haulers Reinforced . | . . . . . Stealth | -11 -10 -10 -9 -9 --------- Run | Scr Mat Min Mat Min Distress Signals 3 | . . . 3 . Communications Jammed . | . . . . . Distress Signals . | . . . . . Times Spotted 75 | . 11 7 45 12 Peak Tracking Total 8 | . 3 3 8 5 Tactical Retreats 7 | . . . 6 1 Traps | -11 -10 -10 -9 -9 ------- Run | Scr Mat Min Mat Min Traps Triggered 2 | . 2 . . . Indirectly . | . . . . . Trap Hack Attempts . | . . . . . Triggered . | . . . . . Disarmed . | . . . . . Reprogrammed . | . . . . . Reused . | . . . . . Traps Extracted . | . . . . . Installed . | . . . . . Triggered . | . . . . . Machines | -11 -10 -10 -9 -9 ---------- Run | Scr Mat Min Mat Min Machines Disabled 15 | . 1 . 14 . Max in Single Turn 3 | . 1 . 3 . Machines Sabotaged . | . . . . . Garrisons Compromised . | . . . . . Overloaded Fab Kills . | . . . . . Fab Network Shutdowns . | . . . . . Hacking | -11 -10 -10 -9 -9 --------- Run | Scr Mat Min Mat Min Machines Accessed 11 | . 3 1 7 . Terminals 8 | . 2 1 5 . Fabricators . | . . . . . Repair Stations . | . . . . . Recycling Units 2 | . 1 . 1 . Scanalyzers 1 | . . . 1 . Garrison Access . | . . . . . Total Hacks 25 | . 4 4 17 . Successful 20 | . 3 4 13 . Failed 5 | . 1 . 4 . Catastrophic 1 | . . . 1 . Database Lockouts . | . . . . . Manual . | . . . . . Terminals 16 | . 3 4 9 . Fabricators . | . . . . . Repair Stations . | . . . . . Recycling Units 2 | . 1 . 1 . Scanalyzers 7 | . . . 7 . Garrison Access . | . . . . . Terminal Hacks 11 | . 2 4 5 . Record 3 | . . 3 . . Robot Analysis 2 | . . . 2 . Prototype ID Bank 1 | . . . 1 . Branch Access Points 1 | . 1 . . . Emergency Access Points 1 | . 1 . . . Dispatch Records 1 | . . . 1 . Zone Layout 2 | . . 1 1 . Fabricator Hacks . | . . . . . Repair Station Hacks . | . . . . . Recycling Unit Hacks 2 | . 1 . 1 . Report Inventory 2 | . 1 . 1 . Scanalyzer 7 | . . . 7 . Insert Component 3 | . . . 3 . Analyze 4 | . . . 4 . Garrison Access Hacks . | . . . . . Unauthorized Hacks . | . . . . . Terminals . | . . . . . Fabricators . | . . . . . Repair Stations . | . . . . . Recycling Units . | . . . . . Scanalyzers . | . . . . . Garrison Access . | . . . . . Data Cores Recovered . | . . . . . Used . | . . . . . Hacking Detections 6 | . 2 . 4 . Full Trace Events 1 | . . . 1 . Feedback Events . | . . . . . Feedback Blocked . | . . . . . Robot Schematics Acquired . | . . . . . Robots Built . | . . . . . Matter . | . . . . . Time . | . . . . . Total Robot Build Rating . | . . . . . Part Schematics Acquired 3 | . . . 3 . Parts Built . | . . . . . Matter . | . . . . . Time . | . . . . . Total Part Build Rating . | . . . . . Parts Repaired . | . . . . . Time . | . . . . . Parts Recycled . | . . . . . Recycled Matter . | . . . . . Retrieved Matter . | . . . . . Retrieved Components . | . . . . . Parts Scanalyzed 3 | . . . 3 . Part Schematics Acquired 3 | . . . 3 . Parts Damaged . | . . . . . Bothacking | -11 -10 -10 -9 -9 ------------ Run | Scr Mat Min Mat Min Used RIF Installer . | . . . . . Robots Hacked . | . . . . . Non-combat . | . . . . . Combat . | . . . . . Robot Hacks Applied . | . . . . . Relay Couplers Released . | . . . . . Robots Rewired . | . . . . . Allies Hacked . | . . . . . Hacks Repelled . | . . . . . Allies | -11 -10 -10 -9 -9 -------- Run | Scr Mat Min Mat Min Total Allies . | . . . . . Largest Group . | . . . . . Highest-Rated Group . | . . . . . Highest-Rated Ally . | . . . . . Total Orders . | . . . . . Ally Attacks . | . . . . . Total Damage . | . . . . . Kills . | . . . . . Allies Corrupted . | . . . . . Allies Melted . | . . . . . Intel | -11 -10 -10 -9 -9 ------- Run | Scr Mat Min Mat Min Robot Analysis Total 2 | . . . 2 . Derelict Logs Recovered 3 | . . 1 . 2 Drone Launches . | . . . . . Drone Recoveries . | . . . . . Exploration | -11 -10 -10 -9 -9 ------------- Run | Scr Mat Min Mat Min Turns Passed 3673 | 53 445 625 1518 1032 Spaces Moved 2294 | 41 292 461 984 516 Core 11 | 5 . . . 6 Treads . | . . . . . Legs 2283 | 36 292 461 984 510 Wheels . | . . . . . Hover . | . . . . . Flight . | . . . . . Fastest Speed 50 | 50 120 120 120 120 Average Speed 134 | 111 120 120 122 180 Slowest Speed 450 | 120 120 120 150 450 Overloaded Moves . | . . . . . Propulsion Burnouts . | . . . . . Robots Hopped . | . . . . . Cave-ins Triggered . | . . . . . Exploration Rate (%) 57 | 4 56 71 67 87 Regions Visited 4 Branch Regions 2 Pre-discovered Areas . | . . . . . Known Exits Taken 2 | . 1 . 1 . Unknown Exits Taken 2 | 1 . 1 . . Scrap Searched 3 | . . 1 . 2 Spaces Dug . | . . . . . Terrain Destroyed 286 | . 20 30 184 52 Melee . | . . . . . Projectile . | . . . . . AOE 286 | . 20 30 184 52 Terrain Rammed . | . . . . . Walls Destroyed . | . . . . . Machines Disabled . | . . . . . Actions | -11 -10 -10 -9 -9 --------- Run | Scr Mat Min Mat Min Total 2625 | 46 343 514 1148 574 Wait 69 | . 7 26 26 10 Move 2290 | 40 291 460 983 516 Hop . | . . . . . Pick Up 25 | 1 5 4 11 4 Fast Attach 21 | 5 4 1 10 1 Attach 10 | . . 1 4 5 Detach 1 | . . . 1 . Swap 13 | . 4 1 7 1 Drop 28 | . 6 4 17 1 Fire 168 | . 26 17 89 36 Melee . | . . . . . Ram . | . . . . . Kick . | . . . . . Crush . | . . . . . Escape Stasis . | . . . . . Rewire . | . . . . . Trap . | . . . . . Miscellaneous . | . . . . . Route ------- -11/Scrapyard -10/Materials (discovered 4 exits: *Mat x2 / *Min x2) -10/Mines (discovered 2 exits: *Mat x2) -9/Materials (discovered 3 exits: *Mat x2 / *Min) -9/Mines (discovered 3 exits: *Mat x2 / *Exi) History --------- Turn | Location | Event 4 | -11/Scrapyard | Discovered new exit (range 15) 54 | -11/Scrapyard | Entered Materials 159 | -10/Materials | Discovered new exit (range 14) 242 | -10/Materials | Identified exit to Mines 261 | -10/Materials | Discovered new exit (range 10) 306 | -10/Materials | Build established: Mutant 412 | -10/Materials | Discovered new exit (range 15) 499 | -10/Materials | Entered Mines 514 | -10/Mines | Met a Derelict bent on vengeance 646 | -10/Mines | Discovered new exit (range 11) 674 | -10/Mines | Learned 8 Materials zone layouts 858 | -10/Mines | Discovered new exit (range 6) 946 | -10/Mines | Build established: Scavenger-Mutant 1124 | -10/Mines | Entered Materials 1124 | -9/Materials | Evolved 2 slots: Propulsion x1, Utility x1 1125 | -9/Materials | Identified exit to Materials 1777 | -9/Materials | Discovered exit to Materials (range 10) 1809 | -9/Materials | Discovered new exit (range 15) 1826 | -9/Materials | Identified exit to Mines 2154 | -9/Materials | Build established: Mutant 2642 | -9/Materials | Entered Mines 2643 | -9/Mines | Assembled infested the area 2676 | -9/Mines | Core integrity fell below 50% 2732 | -9/Mines | Lost 6 parts (1p3n2w) 2795 | -9/Mines | Discovered exit to Materials (range 11) 2835 | -9/Mines | Learned Materials terminal intel 2945 | -9/Mines | Deemed a non-threat by the Exiles lab entrance 2945 | -9/Mines | Discovered new exit (range 5) 2951 | -9/Mines | Identified exit to Exiles 3032 | -9/Mines | Build established: Scavenger-Mutant 3177 | -9/Mines | Found a hidden stash of uninstalled traps 3258 | -9/Mines | Learned location of 1 exit from Materials 3449 | -9/Mines | Discovered exit to Materials (range 2) 3524 | -9/Mines | Received a Rocket Launcher from a helpful Derelict 3644 | -9/Mines | Core integrity fell below 20% 3674 | -9/Mines | Destroyed by D-53 Grenadier with Mini Grenade Launcher Last Messages --------------- D-53 Grenadier destroyed. The unstable cave ceiling collapses. EM Pulse Cannon destroyed. Hvy. Assault Rifle destroyed. K-01 Serf destroyed. D-53 Grenadier IFF system glitched. The unstable cave ceiling collapses. EM Pulse Cannon severed. R-06 Scavenger collects EM Pulse Cannon. L-31 Rogue destroyed. Aluminum Leg destroyed. Destroyed Aluminum Leg. R-06 Scavenger destroyed. U-05 Engineer builds a Wall. G-34 Mercenary destroyed. U-05 Engineer destroyed. The unstable cave ceiling collapses. T-07 Excavator destroyed. The unstable cave ceiling collapses. R-06 Scavenger collects Lgt. Ion Engine. Map ----- +----------------------------------------------------+ | ?????????????????????????????????????????????????? | | ????????????????????????????????????????????####?? | | ???????????????????####??????###???????????## ##? | | ????????????####??## ####### ##?########## ## | | #####??????## ##?# #?# | | #??????# #?# ### ## #### | | ### #??????# #?# ## ## ## #??# | | ### #??????# #?## #### ##### #### #?## & # | | #??????## ##??#####??# #??## #### ### & ## | | ## #???????# #?????###### #??# ##? | | ## #??????## ####### #??# ##?? | | ## #??????# ######??# #### ### ##??? | | ## #?????## ####### #???????# #??# #?#####???? | | ## ##????# ##?????# #???????# #??# #?????????? | | ###### #??????# #???????# #??# #?????????? | | "" #??????# #???????# #??# #####????## | | "" #??????# #???????# #??# #???## | | "" ###### ##?##### #???????# #??##### #???# | | #????# ### ## ######### #??????# #???# | | # ########## #??????# #???# | | # # #??????# #???# | | # ###r ################# #???## | | ## ###### ## #????# ###### | | ## #????# # #????# ###### | | # &##???## ## ##??????????# | | ##???# ## =@! #??????????###### | | ##??## # #???????????????# | | #???# ## #???????????????# | | ###?# #### ##???????????????## | | ## ? ???# # ##?????????????????### | | ####### ???## ##???????????????????# | | #?????# ###????# ##??????????????????? | | #?????# #??????## d ##?????????????????? | | #?????# ???##### ##????????????????? | | #??????# #?## # %= ##???????????????? | | #???????# ## # #???????????????? | | #????????# ###?????????????? | | #????????## #??????????#### | | ############ #??????????# | | % #??????????# ## | | ## # #??????????# #? | | ############# ### ### #??????????# #? | | ????????????####?# #####??? #??????????# #? | | ?????????????????# ### #???????????????????# #? | | ?????????????????# #?## ##???????????????????# #? | | ????????????????? ??####?????????????###?#### ## | | ???????????????? ??????????????????## ## ##[ | | ???????????????? ??????????????????? # ## | | ???????????????? ??????????????# ######### ## | | ??????????????? ??????????????# ### | +----------------------------------------------------+ Best States ------------- Heat Dissipation 42 Energy Generation 14 Energy Capacity 280 Matter Stores 450 Matter Capacity 450 Sight Range 16 Robot Scan Range 10 Terrain Scan Density 10 Armor Coverage 150 Evasion (%) 40 Item Schematics ----------------- Beam Rifle | -9/Materials | Scanalyzed Imp. Heat Sink | -9/Materials | Scanalyzed EM Pulse Cannon | -9/Materials | Scanalyzed Robot Schematics ------------------ None Fabricated ------------ Nothing Alien Tech Used ----------------- None Achievements -------------- None Challenges ------------ None Game ------ Seed TeslaGravmagBuckler Manual? 0 Play Time 00:36:12 Cumulative 9.7 hours Start 2021.05.11 @ 17:46:12 End 2021.05.11 @ 18:22:58 Sessions 1 Manual Loads 0 Difficulty Rogue Special Mode None Game No. 8 Rogue 8 Adventurer 0 Explorer 0 Win Type - Total 0 Types 0/0/0/0/0/0/0/0/0 Lore% 7 Gallery% 15 Achievement% 12 Wizard Run 0 Options --------- ASCII 0 Keyboard 0 Movement Numpad Keybinds 0 Fullscreen 1 Font 18/SmallcapsGlow Map View 76x50 Tactical HUD 0 Map Filters NONE Filters NONE Steam 1 RUN: e975a03a-2ad2-485f-8b3d-5a6c33b66a64